fUST/lending_fUST_20250616
["ID","MTS","AMOUNT","RATE_DAILY","PERIOD"]
[366072454,1750050639474,-460.0,0.00022191,4]
[366072456,1750050639484,-263.61026868,0.00022191,4]
[366072458,1750050639495,-460.0,0.00022191,4]
[366072460,1750050639504,-477.46230457,0.00022191,4]
[366072462,1750050639514,-460.0,0.00022191,4]
[366072464,1750050639524,-460.0,0.00022191,4]
[366072466,1750050639534,-452.96441124,0.00022191,4]
[366072468,1750050639546,-460.0,0.00022191,4]
[366072470,1750050639555,-365.26134269,0.00022191,4]
[366072473,1750050639566,-460.0,0.00022191,4]
[366072475,1750050639575,-460.0,0.00022191,4]
[366072477,1750050639585,-460.0,0.00022191,4]
[366072479,1750050639595,-460.0,0.00022191,4]
[366072481,1750050639605,-646.72,0.000222,7]
[366072483,1750050639615,-506.95888743,0.00022285,2]
[366072485,1750050639625,-500.0,0.00022294,2]
[366072487,1750050639635,-516.12922554,0.00022294,2]
[366072489,1750050639646,-496.19,0.00022465,4]
[366072491,1750050639656,-509.97005509,0.00022465,2]
[366072493,1750050639665,-460.0,0.00022465,2]
[366072495,1750050639675,-460.0,0.00022465,4]
[366072497,1750050639684,-460.0,0.00022465,4]
[366072499,1750050639694,-460.0,0.00022465,4]
[366072501,1750050639706,-460.0,0.00022465,4]
[366072503,1750050639716,-706.19,0.00022465,4]
[366072505,1750050639725,-460.0,0.00022465,4]
[366072507,1750050639735,-460.0,0.00022465,4]
[366072509,1750050639744,-460.0,0.00022465,4]
[366072511,1750050639753,-460.0,0.00022465,4]
[366072513,1750050639763,-296.43193493,0.00022465,4]
[366072515,1750050639773,-258.03077551,0.00022465,4]
[366072898,1750050643665,-201.96922449,0.00022465,4]
[366072900,1750050643676,-460.0,0.00022465,4]
[366072902,1750050643686,-229.90125484,0.00022494,2]
[366072904,1750050643697,-192.15454912,0.00022494,2]
[366072906,1750050643710,-653.26014558,0.00022494,2]
[366072908,1750050643719,-505.36277811,0.00022609,2]
[366072911,1750050643730,-247.0,0.00022661,2]
[366072913,1750050643740,-146.93433623,0.00022697,2]
[366072916,1750050643754,-153.06566377,0.00022697,2]
[366072918,1750050643770,-496.19,0.00022739,4]
[366072921,1750050643781,-460.0,0.00022739,2]
[366072925,1750050643791,-460.0,0.00022739,4]
[366072928,1750050643801,-460.0,0.00022739,4]
[366072930,1750050643811,-460.0,0.00022739,4]
[366072934,1750050643821,-460.0,0.00022739,4]
[366072936,1750050643831,-556.70758192,0.00022739,4]
[366073184,1750050646762,-149.48241808,0.00022739,4]
[366073186,1750050646772,-169.08,0.00022739,4]
[366073188,1750050646782,-460.0,0.00022739,4]
[366073190,1750050646792,-460.0,0.00022739,4]
[366073192,1750050646802,-460.0,0.00022739,4]
[366073194,1750050646813,-369.99,0.00022739,4]
[366073196,1750050646823,-363.76,0.00022739,4]
[366073198,1750050646833,-500.0,0.00022842,2]
[366073200,1750050646842,-241.0,0.00022876,7]
[366073202,1750050646852,-423.14276895,0.00022882,2]
[366073204,1750050646862,-188.69697815,0.00022897,2]
[366073206,1750050646872,-316.93010785,0.00022911,2]
[366073208,1750050646884,-5000.0,0.00022941,2]
[366073210,1750050646895,-500.0,0.00022982,2]
[366073212,1750050646904,-500.0,0.00022982,2]
[366073214,1750050646914,-500.0,0.00022982,2]
[366073216,1750050646926,-500.0,0.00022982,2]
[366073218,1750050646936,-500.0,0.00022982,2]
[366073220,1750050646945,-500.0,0.00022982,2]
[366073222,1750050646955,-11981.86122313,0.00022982,2]
[366073224,1750050646967,-500.0,0.00022982,2]
[366073226,1750050646978,-500.0,0.00022982,2]
[366073228,1750050646987,-445.89319755,0.00022982,2]
[366073230,1750050646996,-500.0,0.00022982,2]
[366073232,1750050647006,-500.0,0.00022982,2]
[366073234,1750050647015,-207.4,0.00022982,2]
[366073236,1750050647025,-460.0,0.00022999,4]
[366073238,1750050647034,-460.0,0.00022999,4]
[366073240,1750050647043,-476.3832492,0.00022999,4]
[366073242,1750050647053,-441.46084496,0.00022999,4]
[366073244,1750050647063,-496.19,0.00023013,4]
[366073246,1750050647073,-460.0,0.00023013,2]
[366073248,1750050647083,-460.0,0.00023013,4]
[366073250,1750050647092,-324.08973657,0.00023013,4]
[366073252,1750050647101,-460.0,0.00023013,4]
[366073253,1750050647111,-460.0,0.00023013,4]
[366073255,1750050647120,-706.19,0.00023013,4]
[366073257,1750050647129,-201.85,0.00023013,4]
[366073259,1750050647139,-460.0,0.00023013,4]
[366073261,1750050647148,-460.0,0.00023013,4]
[366073263,1750050647158,-241.0,0.00023136,2]
[366073265,1750050647168,-460.0,0.00023273,4]
[366073267,1750050647177,-469.22806895,0.00023273,4]
[366073269,1750050647187,-496.19,0.00023287,4]
[366073271,1750050647196,-460.0,0.00023287,2]
[366073273,1750050647207,-460.0,0.00023287,4]
[366073275,1750050647216,-460.0,0.00023287,4]
[366073277,1750050647226,-460.0,0.00023287,4]
[366073279,1750050647236,-706.19,0.00023287,4]
[366073281,1750050647245,-460.0,0.00023287,4]
[366073283,1750050647255,-155.20712145,0.00023287,4]
[366073285,1750050647264,-502.54787747,0.00023338,2]
[366073287,1750050647274,-501.92565883,0.00023338,2]
[366073289,1750050647283,-423.14276893,0.00023359,2]
[366073291,1750050647293,-546.92009004,0.00023499,2]
[366073293,1750050647302,-500.0,0.00023499,2]
[366073295,1750050647312,-160.0,0.00023499,2]
[366073297,1750050647323,-3000.0,0.000235,2]
[366073299,1750050647332,-3000.0,0.0002351,2]
[366073301,1750050647341,-3000.0,0.0002352,2]
[366073303,1750050647350,-3000.0,0.0002353,2]
[366073305,1750050647359,-151.0,0.0002353,7]
[366073307,1750050647368,-151.0,0.0002353,7]
[366073309,1750050647378,-151.0,0.0002353,7]
[366073311,1750050647388,-3000.0,0.0002354,2]
[366073313,1750050647398,-547.07,0.00023547,4]
[366073315,1750050647407,-3000.0,0.0002355,2]
[366073316,1750050647416,-3000.0,0.0002356,2]
[366073318,1750050647426,-496.19,0.00023561,4]
[366073320,1750050647435,-460.0,0.00023561,2]
[366073322,1750050647444,-151.0,0.00023561,7]
[366073324,1750050647454,-153.192092,0.00023561,7]
[366073326,1750050647463,-460.0,0.00023561,4]
[366073328,1750050647473,-409.89,0.00023561,4]
[366073330,1750050647482,-285.78,0.00023561,4]
[366073332,1750050647491,-706.19,0.00023561,4]
[366073334,1750050647500,-151.0,0.00023561,7]
[366073336,1750050647510,-151.0,0.00023561,7]
[366073338,1750050647520,-460.0,0.00023561,4]
[366073340,1750050647530,-500.0,0.00023563,2]
[366073342,1750050647539,-501.65406239,0.00023563,2]
[366073344,1750050647548,-501.15956956,0.00023563,2]
[366073346,1750050647558,-3000.0,0.0002357,2]
[366073348,1750050647568,-151.729213,0.0002357,7]
[366073350,1750050647578,-152.17083,0.0002357,7]
[366073352,1750050647587,-3000.0,0.0002358,2]
[366073354,1750050647596,-3000.0,0.0002359,2]
[366073356,1750050647606,-3000.0,0.000236,2]
[366073358,1750050647615,-3000.0,0.0002361,2]
[366073360,1750050647625,-165.332293,0.0002361,7]
[366073362,1750050647635,-151.0,0.0002361,7]
[366073364,1750050647645,-151.0,0.0002361,7]
[366073366,1750050647655,-151.0,0.0002361,7]
[366073368,1750050647664,-3000.0,0.0002362,2]
[366073370,1750050647674,-3000.0,0.0002363,2]
[366073372,1750050647685,-3000.0,0.0002364,2]
[366073374,1750050647695,-3000.0,0.0002365,2]
[366073375,1750050647705,-3000.0,0.0002366,2]
[366073376,1750050647714,-3000.0,0.0002367,2]
[366073377,1750050647723,-152.096639,0.0002367,7]
[366073378,1750050647733,-301.927843,0.0002367,7]
[366073379,1750050647742,-151.0,0.0002367,7]
[366073380,1750050647751,-3178.706669,0.0002368,2]
[366073381,1750050647761,-600.0,0.00023688,2]
[366073382,1750050647771,-500.0,0.00023688,2]
[366073383,1750050647780,-646.72,0.000237,7]
[366073384,1750050647790,-496.19,0.00023835,4]
[366073386,1750050647800,-460.0,0.00023835,2]
[366073388,1750050647809,-242.55,0.00023835,4]
[366073390,1750050647819,-706.19,0.00023835,4]
[366073392,1750050647828,-460.0,0.00023835,4]
[366073394,1750050647837,-423.14276893,0.00023836,2]
[366073396,1750050647847,-601.73985976,0.00023904,2]
[366073398,1750050647856,-474.18,0.00024,2]
[366073400,1750050647866,-30060.0,0.00024,2]
[366073402,1750050647875,-151.0,0.00024,7]
[366073404,1750050647888,-154.232959,0.00024,7]
[366073406,1750050647898,-151.0,0.00024,7]
[366073408,1750050647911,-227.701216,0.00024,7]
[366073410,1750050647922,-151.0,0.00024,7]
[366073412,1750050647932,-683.52235,0.00024,7]
[366073415,1750050647942,-683.52235,0.00024,7]
[366073416,1750050647951,-151.0,0.00024,7]
[366073419,1750050647961,-151.0,0.00024,7]
[366073421,1750050647971,-155.091108,0.00024,7]
[366073423,1750050647981,-1936.443207,0.00024,2]
[366073425,1750050647991,-1936.443207,0.00024,2]
[366073427,1750050648000,-151.0,0.00024,7]
[366073429,1750050648010,-151.0,0.00024,7]
[366073431,1750050648021,-181.895242,0.00024,7]
[366073433,1750050648031,-161.943011,0.00024,7]
[366073435,1750050648040,-181.895242,0.00024,7]
[366073437,1750050648049,-151.0,0.00024,7]
[366073439,1750050648059,-288.756291,0.00024,7]
[366073441,1750050648069,-241.0,0.00024045,2]
[366073443,1750050648078,-501.78324747,0.0002405,2]
[366073445,1750050648088,-158.41722,0.0002405,7]
[366073446,1750050648098,-964.0,0.00024107,2]
[366073448,1750050648108,-653.0,0.00024107,2]
[366073450,1750050648118,-496.19,0.00024109,4]
[366073452,1750050648127,-460.0,0.00024109,2]
[366073454,1750050648137,-706.19,0.00024109,4]
[366073456,1750050648146,-460.0,0.00024109,4]
[366073459,1750050648156,-1000.0,0.0002411,2]
[366073461,1750050648165,-590.7819618,0.00024164,2]
[366073463,1750050648175,-1314.0,0.00024174,2]
[366073465,1750050648185,-1314.0,0.0002418,2]
[366073467,1750050648195,-1200.0,0.00024235,2]
[366073469,1750050648205,-1000.0,0.00024235,2]
[366073471,1750050648215,-1314.0,0.00024252,2]
[366073473,1750050648224,-730.616353,0.00024303,3]
[366073475,1750050648233,-423.14276893,0.00024313,2]
[366073477,1750050648243,-1314.0,0.0002432,2]
[366073479,1750050648253,-1314.0,0.00024339,2]
[366073481,1750050648262,-215.0738,0.00024351,2]
[366073483,1750050648271,-496.19,0.00024383,4]
[366073485,1750050648281,-460.0,0.00024383,2]
[366073486,1750050648290,-706.19,0.00024383,4]
[366073488,1750050648299,-460.0,0.00024383,4]
[366073491,1750050648309,-1314.0,0.0002442,2]
[366073492,1750050648319,-153.0,0.00024438,2]
[366073494,1750050648328,-153.0,0.00024438,2]
[366073496,1750050648337,-153.0,0.00024438,2]
[366073499,1750050648347,-153.0,0.00024438,2]
[366073501,1750050648357,-153.0,0.00024438,2]
[366073503,1750050648366,-453.2312045,0.00024438,2]
[366073505,1750050648376,-250.0,0.00024516,2]
[366073507,1750050648386,-9361.60645123,0.00024571,10]
[366073509,1750050648396,-1314.0,0.00024594,2]
[366073511,1750050648405,-241.0,0.00024596,2]
[366073513,1750050648415,-188.0,0.000246,7]
[366073515,1750050648424,-639.0,0.000246,2]
[366073517,1750050648434,-5710.39260506,0.00024622,2]
[366073519,1750050648443,-496.19,0.00024657,4]
[366073521,1750050648453,-706.19,0.00024657,4]
[366073523,1750050648464,-169.52157957,0.00024657,4]
[366073525,1750050648474,-1500.0,0.00024658,2]
[366073527,1750050648483,-1314.0,0.00024722,2]
[366073529,1750050648492,-5710.39260506,0.0002476,2]
[366073531,1750050648502,-152.44094549,0.00024768,2]
[366073533,1750050648512,-156.39339772,0.00024768,2]
[366073535,1750050648521,-201.59247577,0.00024768,2]
[366073537,1750050648531,-162.16006144,0.00024768,2]
[366073539,1750050648541,-1314.0,0.00024772,2]
[366073541,1750050648551,-1800.0,0.00024783,2]
[366073543,1750050648561,-561.58709763,0.00024783,2]
[366073545,1750050648571,-423.14276893,0.0002479,2]
[366073547,1750050648581,-151.0,0.00024796,7]
[366073549,1750050648590,-683.52235,0.00024796,7]
[366073551,1750050648601,-683.52235,0.00024796,7]
[366073553,1750050648610,-151.0,0.00024799,7]
[366073555,1750050648621,-151.0,0.00024799,7]
[366073557,1750050648631,-130923.67870061,0.000248,2]
[366077977,1750050943822,162.137528,0.00013699,2]
[366077981,1750051159498,9107.3987964,0.00019,2]
[366077982,1750051159523,6773.6012036,0.00019,2]
[366078003,1750051573063,150.0,0.000189,2]
[366078005,1750051592197,5000.0,0.00019,2]
[366078008,1750051628143,-976.00827093,0.00019206,2]
[366078016,1750051673885,1929.5587964,0.00018,2]
[366078017,1750051673911,3236.83316991,0.00018,2]
[366078040,1750051764115,-4023.99172907,0.00019206,2]
[366078041,1750051764137,-224.71957445,0.000194,2]
[366078042,1750051764159,-187.26631204,0.0001995,2]
[366078043,1750051764180,-1200.0,0.00019998,2]
[366078044,1750051764201,-300.0,0.00019999,2]
[366078045,1750051764221,-300.0,0.00019999,2]
[366078046,1750051764243,-359.75867288,0.00019999,2]
[366078047,1750051764264,-13308.49444401,0.0002,2]
[366078048,1750051766569,2665.08605006,0.00019751,2]
[366078074,1750051831842,-460.0,0.00019751,2]
[366078075,1750051831855,-325.05563696,0.00019751,2]
[366078076,1750051831867,-1549.85831298,0.00019751,2]
[366078077,1750051831878,-190.84605584,0.000199,2]
[366078078,1750051831888,-1200.0,0.00019999,2]
[366078079,1750051831899,-5594.336311,0.0002,2]
[366078080,1750051831909,-190.84605584,0.00020563,2]
[366078082,1750051831918,-300.0,0.00020592,2]
[366078084,1750051831927,-500.0,0.00020593,2]
[366078087,1750051831937,-413.80911458,0.00020593,2]
[366078089,1750051831951,-500.0,0.00020593,2]
[366078090,1750051831961,-500.0,0.00020593,2]
[366078091,1750051831970,-420.47389485,0.00020593,2]
[366078092,1750051831980,-178.44,0.00020593,2]
[366078093,1750051831990,-28633.4473596,0.00020594,2]
[366078094,1750051831999,-163.66362034,0.00020663,2]
[366078095,1750051832009,-288.373122,0.00020763,2]
[366078097,1750051832019,-1095.71,0.000215,2]
[366078098,1750051832029,-424.54874296,0.000215,2]
[366078099,1750051832039,-160.0,0.000215,2]
[366078100,1750051832048,-835.67987521,0.000215,2]
[366078101,1750051832058,-160.0,0.000215,2]
[366078102,1750051832068,-160.0,0.000215,2]
[366078103,1750051832077,-213.36025772,0.000215,2]
[366078104,1750051832087,-160.0,0.000215,2]
[366078105,1750051832096,-163.66362034,0.00021722,2]
[366078106,1750051832106,-2045.58,0.00021774,2]
[366078107,1750051832116,-2676.64988,0.00021816,2]
[366078108,1750051832126,-877.19856604,0.00021817,2]
[366078109,1750051832136,-1680.0,0.00021881,2]
[366078110,1750051832146,-500.87890793,0.00021891,2]
[366078111,1750051832156,-500.0,0.00021904,2]
[366078112,1750051832165,-500.0,0.00021904,2]
[366078113,1750051832175,-501.02346116,0.00021904,2]
[366078114,1750051832184,-503.04139861,0.00021904,2]
[366078115,1750051832194,-500.80144165,0.00021904,2]
[366078116,1750051832203,-388.00089879,0.00021904,2]
[366078117,1750051832213,-500.0,0.00021912,2]
[366078118,1750051832222,-500.0,0.00021912,2]
[366078119,1750051832231,-505.38040956,0.00021912,2]
[366078120,1750051832241,-460.0,0.00021917,4]
[366078121,1750051832251,-379.23512714,0.00021917,4]
[366078122,1750051832261,-494.92205237,0.00021917,4]
[366078123,1750051832271,-460.0,0.00021917,4]
[366078124,1750051832282,-431.70162783,0.00021917,4]
[366078125,1750051832295,-426.28997258,0.00021917,2]
[366078126,1750051832309,-463.98295801,0.00021917,4]
[366078127,1750051832319,-470.67169581,0.00021917,4]
[366078128,1750051832328,-380.35253572,0.00021917,4]
[366078129,1750051832339,-376.89013665,0.00021917,4]
[366078130,1750051832348,-328.01972923,0.00021917,4]
[366078131,1750051832358,-463.9365713,0.00021917,4]
[366078132,1750051832368,-390.0,0.00021917,4]
[366078133,1750051832378,-460.0,0.00021917,4]
[366078134,1750051832388,-507.50500775,0.00021917,4]
[366078135,1750051832398,-29.06072945,0.00021917,4]
[366078136,1750051832478,-453.72859331,0.00021917,4]
[366078137,1750051832489,-460.0,0.00021917,4]
[366078138,1750051832498,-460.0,0.00021917,4]
[366078139,1750051832508,-410.0,0.00021917,4]
[366078140,1750051832517,-472.23075767,0.00021917,4]
[366078141,1750051832527,-465.20336812,0.00021917,4]
[366078142,1750051832537,-471.58731645,0.00021917,4]
[366078143,1750051832547,-232.43273589,0.00021917,4]
[366078144,1750051832557,-451.62567681,0.00021917,4]
[366078145,1750051832567,-460.50476633,0.00021917,4]
[366078146,1750051832576,-471.32508328,0.00021917,4]
[366078147,1750051832586,-426.62063258,0.00021917,4]
[366078148,1750051832596,-447.77057647,0.00021917,4]
[366078149,1750051832606,-462.72416509,0.00021917,4]
[366078150,1750051832616,-424.49835476,0.00021917,4]
[366078151,1750051832626,-428.8735366,0.00021917,4]
[366078152,1750051832635,-382.77249181,0.00021917,4]
[366078153,1750051832645,-409.20762032,0.00021917,4]
[366078154,1750051832655,-214.34594867,0.00021917,4]
[366078155,1750051832667,-208.62918319,0.00021917,4]
[366078156,1750051832678,-475.46093032,0.00021917,4]
[366078157,1750051832688,-419.59784364,0.00021917,4]
[366078158,1750051832698,-466.46065224,0.00021917,4]
[366078159,1750051832707,-446.45260583,0.00021917,4]
[366078160,1750051832717,-532.55512899,0.00021917,4]
[366078161,1750051832728,-460.0,0.00021917,4]
[366078162,1750051832738,-439.91446178,0.00021917,4]
[366078163,1750051832747,-460.0,0.00021917,2]
[366078164,1750051832757,-462.26743328,0.00021917,4]
[366078165,1750051832769,-468.54204228,0.00021917,4]
[366078166,1750051832778,-436.33771687,0.00021917,4]
[366078167,1750051832788,-460.0,0.00021917,4]
[366078168,1750051832797,-461.80111424,0.00021917,4]
[366078169,1750051832806,-119.45903079,0.00021917,4]
[366078170,1750051832827,-357.37077579,0.00021917,4]
[366078171,1750051832837,-258.78679285,0.00021917,4]
[366078172,1750051832850,-175.92727377,0.00021917,4]
[366078173,1750051832859,-350.12286473,0.00021917,4]
[366078180,1750051837918,-210.99892188,0.00021917,4]
[366078181,1750051837928,-469.25141594,0.00021917,4]
[366078182,1750051837938,-460.0,0.00021917,4]
[366078183,1750051837948,-401.12034952,0.00021917,4]
[366078184,1750051837958,-460.0,0.00021917,4]
[366078185,1750051837968,-460.0,0.00021917,4]
[366078186,1750051837978,-390.0,0.00021917,4]
[366078187,1750051837988,-379.19564653,0.00021917,4]
[366078188,1750051837997,-24.90218548,0.00021917,4]
[366078338,1750051841015,-524.57,0.00021703,2]
[366078342,1750051841041,-4475.43,0.00021703,2]
[366078344,1750051841052,-440.87473143,0.00021917,4]
[366078346,1750051841062,-469.40004264,0.00021917,4]
[366078348,1750051841073,-431.53433768,0.00021917,4]
[366078350,1750051841083,-460.0,0.00021917,4]
[366078352,1750051841093,-460.0,0.00021917,4]
[366078378,1750051841322,-460.0,0.00021917,4]
[366078380,1750051841333,-410.12553449,0.00021917,4]
[366078382,1750051841343,-460.0,0.00021917,4]
[366078384,1750051841353,-482.35509549,0.00021917,4]
[366078386,1750051841362,-460.0,0.00021917,4]
[366078388,1750051841371,-460.0,0.00021917,4]
[366078390,1750051841382,-1000.0,0.00021917,4]
[366078392,1750051841392,-399.23852844,0.00021917,4]
[366078394,1750051841402,-550.80636894,0.00021917,4]
[366078396,1750051841411,-419.47569401,0.00021917,4]
[366078398,1750051841422,-483.63682239,0.00021917,4]
[366078400,1750051841432,-476.32996467,0.00021917,4]
[366078402,1750051841441,-460.0,0.00021917,4]
[366078404,1750051841451,-475.54587946,0.00021917,4]
[366078406,1750051841460,-460.0,0.00021917,4]
[366078408,1750051841469,-460.0,0.00021917,4]
[366078410,1750051841479,-430.54890267,0.00021917,4]
[366078412,1750051841489,-275.39301353,0.00021917,4]
[366078414,1750051841502,-189.6340309,0.00021917,4]
[366078416,1750051841511,-460.0,0.00021917,4]
[366078418,1750051841521,-251.26513605,0.00021917,4]
[366078420,1750051841533,-208.73486395,0.00021917,4]
[366078422,1750051841542,-48.63149965,0.00021917,4]
[366078571,1750051842944,-411.36850035,0.00021917,4]
[366078573,1750051842954,-224.69158452,0.00021917,4]
[366078575,1750051842964,-470.78043632,0.00021917,4]
[366078577,1750051842974,-374.82273556,0.00021917,4]
[366078579,1750051842983,-110.13674326,0.00021917,4]
[366078852,1750051845880,-358.74104264,0.00021917,4]
[366078855,1750051845890,-460.0,0.00021917,4]
[366078857,1750051845899,-430.0,0.00021917,4]
[366078858,1750051845909,-267.20048546,0.00021917,4]
[366078861,1750051845920,-466.48660837,0.00021917,4]
[366078863,1750051845929,-415.36155184,0.00021917,4]
[366078865,1750051845939,-460.0,0.00021917,4]
[366078867,1750051845948,-460.0,0.00021917,4]
[366078869,1750051845958,-460.0,0.00021917,4]
[366078871,1750051845968,-460.0,0.00021917,4]
[366078873,1750051845977,-460.0,0.00021917,4]
[366078875,1750051845987,-467.65112123,0.00021917,4]
[366078877,1750051845996,-460.0,0.00021917,4]
[366078879,1750051846005,-482.59766002,0.00021917,4]
[366078881,1750051846015,-460.0,0.00021917,4]
[366078883,1750051846024,-460.0,0.00021917,4]
[366078885,1750051846033,-460.0,0.00021917,4]
[366078887,1750051846042,-460.0,0.00021917,4]
[366078889,1750051846051,-460.0,0.00021917,4]
[366078891,1750051846060,-463.95332117,0.00021917,4]
[366078893,1750051846070,-460.0,0.00021917,4]
[366078895,1750051846079,-460.0,0.00021917,4]
[366078897,1750051846088,-203.82208841,0.00021917,4]
[366078899,1750051846100,-191.68148926,0.00021917,4]
[366078901,1750051846110,-460.0,0.00021917,4]
[366078903,1750051846119,-460.0,0.00021917,4]
[366078905,1750051846128,-2.59190223,0.00021917,4]
[366078907,1750051846140,-457.40809777,0.00021917,4]
[366078909,1750051846149,-452.23555197,0.00021917,4]
[366078964,1750051874240,478.54801767,0.00019817,2]
[366078965,1750051938760,1012.0,0.0002,2]
[366078976,1750052173486,178.492566,0.00019913,2]
[366078977,1750052175482,319.03201178,0.00019817,2]
[366078980,1750052198701,170.740815,0.00013699,2]
[366078982,1750052221101,177.62182,0.00019905,2]
[366078983,1750052221319,177.62182,0.00019905,120]
[366078984,1750052233967,5000.0,0.0002,2]
[366078985,1750052249724,574.32700851,0.0002,2]
[366078991,1750052476694,212.68800785,0.00019817,2]
[366078992,1750052693158,352.13558652,0.00019751,2]
[366078993,1750052693185,636.12348018,0.00019751,2]
[366078994,1750052771141,1687.5572445,0.00019755,2]
[366078996,1750052778612,150.0,0.000189,2]
[366078998,1750052841878,1000.0,0.00019,2]
[366078999,1750052854097,-162.77636674,0.00020114,2]
[366079000,1750052854118,-23.46406971,0.00020724,2]
[366079001,1750052854146,-227.86350286,0.00020724,2]
[366079002,1750052854313,-158.04941392,0.00020724,2]
[366079003,1750052854337,-1200.0,0.00020734,2]
[366079004,1750052854360,-300.0,0.00020735,2]
[366079005,1750052854382,-300.0,0.00020735,2]
[366079006,1750052854405,-300.0,0.00020735,2]
[366079007,1750052854427,-500.0,0.00020736,2]
[366079008,1750052854449,-500.0,0.00020736,2]
[366079009,1750052854470,-500.0,0.00020736,2]
[366079010,1750052854493,-500.0,0.00020736,2]
[366079011,1750052854516,-500.0,0.00020736,2]
[366079012,1750052854540,-500.0,0.00020736,2]
[366079013,1750052854561,-500.0,0.00020736,2]
[366079014,1750052854585,-500.0,0.00020736,2]
[366079015,1750052854607,-371.82236902,0.00020736,2]
[366079016,1750052854627,-500.0,0.00020736,2]
[366079017,1750052854648,-354.54597149,0.00020736,2]
[366079018,1750052854670,-11522.52191992,0.00020737,2]
[366079019,1750052971097,-300.0,0.00020475,2]
[366079020,1750052971118,-11377.6692299,0.00020476,2]
[366079022,1750053008195,288.3731235,0.00020543,2]
[366079059,1750053031988,6877.5586187,0.00020539,2]
[366079063,1750053032012,-4583.24144378,0.00020737,2]
[366079065,1750053032023,-191.318,0.0002078,2]
[366079067,1750053032034,-300.0,0.0002078,2]
[366079069,1750053032044,-569.0,0.0002078,2]
[366079071,1750053032054,-180.06369716,0.0002078,2]
[366079073,1750053032063,-1539.36255216,0.00020889,2]
[366079074,1750053032073,-1133.1,0.00021172,2]
[366079076,1750053032083,-2267.61788847,0.00021172,2]
[366079078,1750053032093,-282.87485636,0.00021259,2]
[366079080,1750053032102,-160.0,0.00021516,2]
[366079082,1750053032113,-160.0,0.00021516,2]
[366079084,1750053032123,-845.4146947,0.00021516,2]
[366079086,1750053032132,-191.0,0.00021603,2]
[366079088,1750053032142,-160.0,0.000217,2]
[366079089,1750053032152,-160.0,0.000217,2]
[366079091,1750053032162,-1662.93247452,0.00021829,2]
[366079093,1750053032172,-1876.97511,0.00021916,2]
[366079095,1750053032181,-500.0,0.00021916,2]
[366079097,1750053032191,-160.0,0.00021916,2]
[366079099,1750053032201,-601.03697326,0.00021916,2]
[366079101,1750053032210,-500.0,0.00021916,2]
[366079103,1750053032220,-217.88427554,0.00021916,2]
[366079104,1750053032230,-452.44817473,0.00021917,2]
[366079106,1750053032239,-282.78693793,0.00021917,4]
[366079108,1750053032249,-432.65593578,0.00021917,2]
[366079109,1750053032259,-518.20287808,0.00021917,4]
[366079111,1750053032268,-1001.25375367,0.00021917,4]
[366079113,1750053032280,-460.32148295,0.00021917,4]
[366079115,1750053032289,-411.22589353,0.00021917,4]
[366079117,1750053032299,-419.33151012,0.00021917,4]
[366079119,1750053032309,-473.06369365,0.00021917,4]
[366079121,1750053032319,-460.0,0.00021917,4]
[366079123,1750053032328,-443.62423681,0.00021917,4]
[366079125,1750053032338,-391.51598556,0.00021917,4]
[366079126,1750053032347,-460.0,0.00021917,4]
[366079127,1750053032357,-474.47905176,0.00021917,4]
[366079128,1750053032367,-526.58598256,0.00021917,4]